Cogmind - Beta 15 @@@ ROGUE MODE // 2025.05.27 @ 20:58:24 Player: Sinthome Result: Destroyed by G-34 Mercenary with Small Laser Performance ------------- Evolutions (0) 0 Regions Visited (1) 200 Robots Destroyed (15) 75 Value Destroyed (325) 325 Prototype IDs (0) 0 Alien Tech Used (0) 0 Bonus (0) 0 TOTAL SCORE: 600 Bonus ------- None Cogmind --------- Core Integrity 0/250 Matter 280/300 Energy 199/200 System Corruption 0% Temperature Cool (6) Movement Core (50) Location -10/Materials Parts ------- > --- POWER (1) -------- (None) > --- PROPULSION (2) --- Aluminum Leg Aluminum Leg > --- UTILITY (2) ------ Small Battery Signal Interpreter > --- WEAPON (2) ------- EM Pulse Gun > --- INVENTORY (5) ---- Ion Engine Light Treads Wheel Light Assault Rifle Peak State ------------ > --- POWER ------------ Light Nuclear Core > --- PROPULSION ------- Light Treads Light Treads > --- UTILITY ---------- High-capacity Storage Unit Small Battery > --- WEAPON ----------- Assault Rifle Light Assault Rifle > --- INVENTORY -------- Ion Engine Ion Engine Ion Engine Ion Engine Light Ion Engine Light Ion Engine Aluminum Leg Aluminum Leg Aluminum Leg Aluminum Leg Wheel Flight Unit Heat Sink Small Storage Unit Structural Scanner EM Pulse Gun Small Laser Particle Gun Light Assault Rifle [Rating: 11] Favorites ----------- Power Ion Engine Engine Ion Engine Power Core Light Nuclear Core Propulsion Light Treads Treads Light Treads Leg Aluminum Leg Utility High-capacity Storage Unit Storage High-capacity Storage Unit Processor Signal Interpreter Weapon Light Assault Rifle Energy Gun EM Pulse Gun Ballistic Gun Light Assault Rifle Build | -11 -10 ------- Run | Yrd Mat Slots Evolved . | . . Power . | . . Propulsion . | . . Utility . | . . Weapon . | . . Parts Attached 18 | 6 12 Power 4 | 1 3 Engine 3 | 1 2 Core 1 | . 1 Reactor . | . . Propulsion 6 | 2 4 Treads 2 | . 2 Leg 4 | 2 2 Wheel . | . . Hover . | . . Flight . | . . Utility 4 | 1 3 Device . | . . Storage 3 | 1 2 Processor 1 | . 1 Hackware . | . . Protection . | . . Artifact . | . . Weapon 4 | 2 2 Energy Gun 2 | . 2 Energy Cannon . | . . Ballistic Gun 2 | 2 . Ballistic Cannon . | . . Launcher . | . . Special Weapon . | . . Impact Weapon . | . . Slashing Weapon . | . . Piercing Weapon . | . . Special Melee Weapon . | . . Unidentified Prototypes . | . . Parts Lost 7 | . 7 Power 2 | . 2 Propulsion 2 | . 2 Utility . | . . Weapon 3 | . 3 Highest Loss Streak 3 | . 3 To Critical Strikes . | . . Average Backups 12 | 2 13 Power 3 | . 3 Propulsion 4 | 1 4 Utility 1 | . 2 Weapon 2 | . 2 Tool/Special . | . . Unused Backups 15 | . 15 Power 5 | . 5 Propulsion 4 | . 4 Utility 2 | . 2 Weapon 4 | . 4 Tool/Special . | . . Average Slot Usage (%) 91 | . 91 Engine 10 | . 10 Core 2 | . 2 Treads 17 | . 17 Leg 9 | . 9 Storage 22 | . 22 Energy Gun 4 | . 4 Ballistic Gun 22 | . 22 Peak Build Rating 11 | 6 11 Average Rating 7 | 4 7 On Entrance 3 | . 6 Naked Turns . | . . Heaviest Build 49 | 13 49 Greatest Support 40 | 20 40 Greatest Overweight (x) 2 | . 2 Average Overweight (x) . | . 1 Largest Inventory Capacity 20 | 8 20 Average Capacity 17 | 7 18 Most Carried 20 | 5 20 Average Carried 12 | 2 13 Final Capacity 8 | 8 5 Final Carried 5 | 5 4 Class Distribution -------------------- 100% | Mutant Dominant Class ---------------- Mutant | -10/Materials Resources | -11 -10 ----------- Run | Yrd Mat Matter Collected 500 | 208 292 Remotely . | . . Salvage Created 343 | . 343 Parts 22 | . 22 Haulers Intercepted 1 | . 1 Recyclers Shooed 1 | . 1 Parts Field Recycled . | . . Retrieved Matter . | . . Parts Self-Destructed . | . . Prevented . | . . Kills | -11 -10 ------- Run | Yrd Mat Combat Hostiles Destroyed 11 | . 11 Guns 9 | . 9 AOE 2 | . 2 Classes Destroyed 6 | . 6 Worker 1 | . 1 Hauler 1 | . 1 Operator 1 | . 1 Watcher 1 | . 1 Swarmer 6 | . 6 Grunt 5 | . 5 Best Kill Streak 4 | . 4 Combat Bots Only 3 | . 3 Max Kills in Single Turn 2 | . 2 Gunslinging . | . . Exploded 2 | . 2 Melee . | . . Uniques/NPCs Destroyed . | . . Combat | -11 -10 -------- Run | Yrd Mat Hostile Shots Fired 100 | . 100 Missed 25 | . 25 Hits 75 | . 75 Projectile 75 | . 75 Critical Strikes 1 | . 1 Damage Taken 1065 | . 1065 Core 258 | . 258 Absorbed by Shields . | . . Core Remaining (%) 100 | 100 . Volleys Fired 51 | . 51 Largest 2 | . 2 Hottest 60 | . 60 Shots Fired 97 | . 97 Gun 97 | . 97 Cannon . | . . Launcher . | . . Special . | . . Kinetic 88 | . 88 Thermal . | . . Explosive . | . . Electromagnetic 9 | . 9 Robot Hit Streak 6 | . 6 Robot Miss Streak 4 | . 4 Penetration Max . | . . Secondary Targets 2 | . 2 Max Gunslinging Chain 1 | . 1 Shots Hit Robots 44 | . 44 Core Hits 23 | . 23 Critical Kills . | . . Critical Parts Destroyed 2 | . 2 Critical Strikes 2 | . 2 Destroy 2 | . 2 Melee Attacks . | . . Impact . | . . Slashing . | . . Piercing . | . . Sneak Attacks . | . . Combat Hostiles . | . . Follow-up Attacks . | . . Damage Inflicted 885 | . 885 Guns 514 | . 514 Cannons . | . . Explosions 371 | . 371 Melee . | . . Ramming . | . . Kinetic 454 | . 454 Thermal 371 | . 371 Explosive . | . . Electromagnetic 60 | . 60 Impact . | . . Slashing . | . . Piercing . | . . Highest Corruption . | . . Average Corruption . | . . Corruption Purged . | . . Corruption Blocked . | . . Overload Shots . | . . Overflow Damage 154 | . 154 Projectiles . | . . Explosions 154 | . 154 Melee . | . . Knockbacks . | . . Impact . | . . Kinetic . | . . Secondary . | . . Self-Inflicted Damage 300 | . 300 Shots 5 | . 5 Rammed . | . . Targets Rammed . | . . Kicked . | . . Crushed . | . . Highest Temperature 96 | . 96 Average Temperature 29 | . 29 Received Heat Transfer 288 | . 288 Siege Activations . | . . Martial Activations . | . . Shielding Activations . | . . Robots Disrupted . | . . Combat Hostiles . | . . Robots Corrupted . | . . Combat Hostiles . | . . Parts Fried . | . . Impact Corruptions . | . . Robots Melted . | . . Combat Hostiles . | . . Parts Melted . | . . Heat Transferred 200 | . 200 Parts Sabotaged . | . . Parts Stolen . | . . Parts Stripped . | . . Power Chain Reactions 1 | . 1 Alert | -11 -10 ------- Run | Yrd Mat Maximum Alert Level . | . . Low Security (%) 100 | 100 100 Level 1 . | . . Level 2 . | . . Level 3 . | . . Level 4 . | . . Level 5 . | . . High Security . | . . Max Security . | . . Peak Influence 156 | . 156 Initial . | . . Average 48 | . 53 Influence Increases 486 | . 486 Destroy 0b10 Robot/C 220 | . 220 Destroy 0b10 Robot/NC 20 | . 20 Destroy Leader 44 | . 44 Successful Hack 5 | . 5 Disable Machine 90 | . 90 Destroy Structure 77 | . 77 Lose Combat Pursuer 30 | . 30 Influence Decreases 343 | . 343 Time Decay 228 | . 228 Lost Part 70 | . 70 Purge Threat 45 | . 45 Squads Dispatched 3 | . 3 Investigation 1 | . 1 Extermination . | . . Reinforcement 2 | . 2 Assault . | . . Garrison . | . . Intercept . | . . Searches Triggered . | . . Construction Impeded . | . . Haulers Reinforced . | . . Active Scanning Responses . | . . Cargo Convoy Interrupts . | . . Stealth | -11 -10 --------- Run | Yrd Mat Distress Signals 1 | . 1 Communications Jammed . | . . Distress Signals . | . . Times Spotted 22 | . 22 Peak Tracking Total 3 | . 3 Tactical Retreats 2 | . 2 Traps | -11 -10 ------- Run | Yrd Mat Traps Triggered 1 | . 1 Indirectly . | . . Trap Hack Attempts . | . . Triggered . | . . Disarmed . | . . Reprogrammed . | . . Reused . | . . Traps Extracted . | . . Installed . | . . Triggered . | . . Machines | -11 -10 ---------- Run | Yrd Mat Machines Disabled 6 | . 6 Max in Single Turn 3 | . 3 Machines Repaired . | . . Machines Dismantled . | . . Machines Sabotaged . | . . Overloaded Fab Kills . | . . Hacking | -11 -10 --------- Run | Yrd Mat Machines Accessed 4 | . 4 Terminals 3 | . 3 Fabricators . | . . Repair Stations . | . . Recycling Units 1 | . 1 Scanalyzers . | . . Garrison Access . | . . Total Hacks 6 | . 6 Successful 4 | . 4 Failed 2 | . 2 Catastrophic . | . . Database Lockouts . | . . Manual . | . . Terminals 5 | . 5 Fabricators . | . . Repair Stations . | . . Recycling Units 1 | . 1 Scanalyzers . | . . Garrison Access . | . . Terminal Hacks 3 | . 3 Unreport Threat 1 | . 1 Dispatch Records 1 | . 1 Zone Layout 1 | . 1 Fabricator Hacks . | . . Repair Station Hacks . | . . Recycling Unit Hacks 1 | . 1 Retrieve Components 1 | . 1 Scanalyzer . | . . Garrison Access Hacks . | . . Unauthorized Hacks . | . . Terminals . | . . Fabricators . | . . Repair Stations . | . . Recycling Units . | . . Scanalyzers . | . . Garrison Access . | . . Data Cores Recovered . | . . Used . | . . Hacking Detections . | . . Full Trace Events . | . . Feedback Events . | . . Feedback Blocked . | . . Robot Schematics Acquired . | . . Robots Built . | . . Authchips . | . . Time . | . . Total Robot Build Rating . | . . Part Schematics Acquired . | . . Parts Built . | . . Authchips . | . . Time . | . . Total Part Build Rating . | . . Parts Repaired . | . . Time . | . . Parts Recycled . | . . Recycled Matter . | . . Retrieved Matter . | . . Retrieved Components 4 | . 4 Parts Scanalyzed . | . . Part Schematics Acquired . | . . Parts Damaged . | . . Bothacking | -11 -10 ------------ Run | Yrd Mat Used RIF Installer . | . . Robots Hacked . | . . Non-combat . | . . Combat . | . . Robot Hacks Applied . | . . Relay Couplers Released . | . . Fabnet Peak Effective % . | . . Robots Rewired . | . . Allies Hacked . | . . Hacks Repelled . | . . Allies | -11 -10 -------- Run | Yrd Mat Total Allies . | . . Largest Group . | . . Highest-Rated Group . | . . Highest-Rated Ally . | . . Total Orders . | . . Ally Attacks . | . . Total Damage . | . . Kills . | . . Allies Corrupted . | . . Allies Melted . | . . Intel | -11 -10 ------- Run | Yrd Mat Active Infowar (turns) . | . . Robot Analysis Total . | . . Derelict Logs Recovered . | . . Drone Launches . | . . Drone Recoveries . | . . Exploration | -11 -10 ------------- Run | Yrd Mat Turns Passed 970 | 76 894 Spaces Moved 392 | 55 337 Core 61 | 4 57 Treads 182 | . 182 Legs 149 | 51 98 Wheels . | . . Hover . | . . Flight . | . . Fastest Speed 50 | 50 50 Average Speed 193 | 114 206 Slowest Speed 320 | 120 320 Overloaded Moves . | . . Propulsion Burnouts . | . . Robots Hopped . | . . Potential Cave-ins . | . . Cave-ins Triggered . | . . Exploration Rate (%) 22 | 4 40 Regions Visited 1 Branch Regions . Pre-discovered Areas . | . . Known Exits Taken . | . . Unknown Exits Taken 1 | 1 . Scrap Searched . | . . Spaces Dug . | . . Terrain Destroyed 81 | . 81 Melee . | . . Projectile . | . . AOE 81 | . 81 Terrain Rammed . | . . Walls Destroyed . | . . Machines Disabled . | . . Actions | -11 -10 --------- Run | Yrd Mat Total 510 | 65 445 Wait 26 | . 26 Move 391 | 54 337 Hop . | . . Pick Up 21 | 5 16 Fast Attach 11 | 6 5 Attach 3 | . 3 Detach 1 | . 1 Swap 4 | . 4 Drop 2 | . 2 Fire 51 | . 51 Melee . | . . Ram . | . . Kick . | . . Crush . | . . Escape Stasis . | . . Rewire . | . . Trap . | . . Miscellaneous . | . . Route ------- -11/Scrapyard -10/Materials History --------- Turn | Location | Event 6 | -11/Scrapyard | Discovered new exit (range 15) 77 | -11/Scrapyard | Entered Materials 300 | -10/Materials | Build established: Mutant 657 | -10/Materials | Core integrity fell below 50% 707 | -10/Materials | Core integrity fell below 20% 951 | -10/Materials | Lost 3 parts (1p2w) 971 | -10/Materials | Destroyed by G-34 Mercenary with Small Laser Last Messages --------------- 00915_ W-16 Scout sends out distress signal. 00917_ K-01 Serf cleans the Fusion Modulator. 00920_ Chain reaction triggered in Lgt. Ion Engine. 00920_ W-16 Scout destroyed. 00920_ Fusion Modulator explodes. 00920_ Ion Engine destroyed. 00920_ Destroyed Ion Engine. 00920_ Lgt. Assault Rifle destroyed. 00920_ Destroyed Lgt. Assault Rifle. 00920_ Fusion Modulator explodes. 00920_ K-01 Serf destroyed. 00920_ Terminal disabled. 00920_ EM Pulse Gun destroyed. 00920_ Destroyed EM Pulse Gun. 00920_ T-07 Excavator is excavating. 00922_ Dropped Hcp. Storage Unit. 00924_ T-07 Excavator is excavating. 00928_ Acquired Signal Interpreter. 00947_ K-01 Serf collects debris. 00954_ T-07 Excavator is excavating. Map ----- +----------------------------------------------------+ | ???????????????????????????????????????????? | | ???????????????????????????????????????????? | | ??????????????????????????????????????????? | | ??????????????????????????????????????????? | | ??????????????????????????????????????????? | | ??????????????????????????????????????????? | | ???????????????????????????????????????????? | | ???????????????????????????????????????????? | | ???????????????????????????????????????????? | | ???????????????????????????????????????????? | | ???????????????????????????????????????????? | | ???????????????????????????????????????????? | | ???????????????????????????????????????????? | | ???????????????????????????????????????????? | | ???????????????????????????????????????????? | | ???????????????????????????????????????????? | | ???????????????????????????????????????????? | | ???????????????????????????????????????????? | | ???????????????????????????????????????????? | | ???????????????????????????????????????????? | | ???????????????????????????????????????????? | | ???????????????????????????????????????##### | | ???????????????????????????????????????????? | | ???????????????????????????????????????????? | | ???#################+######## ??????????? | | ???# # @ ????????? | | ???## # g ????????? | | ????# g #####################???????????? | | ????### # ###########?????????????????????? | | ??????### # ?????????????????????? | | ????????# # "" """?????????????????????? | | ????????# # "T """? #??????????????????? | | ######### + "" * """ #??????????????????? | | # # # #?????????????###### | | # !* # " "###??############## # | | # !* # == "#??# | | # # !*=[ % "#??# % | | # + [*!** ""### ############ [[!# | | # # =*![ " #??##########+### | | # # "! ""###+####% " | | # """ #""" "# [ [ # """ """ " | | # """ ## " "# * = # """ """ [" | | # """ ## " "# "Y" # """ """ " | | # ####" """""# """ # # | | #########???#### ######################## | | | | | | | | | | | +----------------------------------------------------+ Best States ------------- Heat Dissipation 25 Energy Generation 14 Energy Capacity 350 Matter Stores 300 Matter Capacity 300 Sight Range 16 Terrain Scan Density 10 Evasion (%) 55 Recoil Reduction 2 Item Schematics ----------------- None Robot Schematics ------------------ None Fabricated ------------ Nothing Repaired ---------- Nothing Alien Tech Used ----------------- None Achievements -------------- None Challenges ------------ None Game ------ Seed StructuralActiveWartreads Manual? 1 Play Time 00:10:17 Cumulative 19.7 hours Start 2025.05.27 @ 20:48:56 End 2025.05.27 @ 20:58:24 Sessions 1 Manual Loads 0 Difficulty Rogue Special Mode None Game No. 22 Rogue 22 Adventurer 0 Explorer 0 Win Type - Total 0 Types 0/0/0/0/0/0/0/0/0/0 Lore% 10 Gallery% 22 Achievement% 16 Wizard Run 0 Options --------- Layout 0 ASCII 0 Keyboard 0 Movement Mouse Keybinds 0 Fullscreen 1 Font 24/X11 Map View 76x50 Zoom Use 0% Tactical HUD 1 Map Filters NONE Filters NONE Steam 1 RUN: 3acf97e3-6f91-468b-9ccb-768529bec94b